Cogmind - Beta 11 X4 --- EXPLORER MODE // 2021.05.30 @ 21:41:10 Player: Krytoss Result: Escaped! Performance ------------- Evolutions (9) 4500 Regions Visited (22) 4400 Robots Destroyed (534) 2670 Value Destroyed (33191) 33191 Prototype IDs (58) 1160 Alien Tech Used (0) 0 Bonus (17106) 17106 TOTAL SCORE: 63027 Bonus ------- High Alert Combat Kills 6741 Follower Combat Kills 4225 Entered Garrisons 1400 Used RIF Installer 3500 Aligned with FarCom 300 Win 3000 Friendly Fire -2060 Cogmind --------- Core Integrity 1397/1600 Matter 255/300 Energy 387/415 System Corruption 15% Temperature Cool (22) Movement Treading (152) Location To Epsilon Eridani Parts ------- > --- POWER (2) -------- Reinforced Antimatter Reactor Light Quantum Reactor > --- PROPULSION (8) --- Biometal Heavy Treads Biometal Heavy Treads Advanced Heavy Siege Treads Advanced Heavy Siege Treads > --- UTILITY (12) ----- Experimental Heat Sink Advanced Cooling System Huge Storage Unit Improved Heavy Armor Plating Relay Coupler [NC] (53) Relay Coupler [Grunt] (44) Relay Coupler [Brawler] (37) Relay Coupler [Duelist] (36) Relay Coupler [Sentry] (16) Relay Coupler [Hunter] (24) > --- WEAPON (4) ------- Enhanced Nova Cannon Enhanced Nova Cannon Enhanced Nova Cannon Advanced Remote Datajack > --- INVENTORY (25) --- Reinforced Antimatter Reactor Quantum Reactor Biometal Medium Treads Advanced Heat Sink Experimental Energy Well (600) Layered Medium Armor Plating Layered Medium Armor Plating Advanced Shield Generator Improved Energy Mantle Antimissile System Relay Coupler [NC] (67) Relay Coupler [NC] (63) Relay Coupler [Swarmer] (84) Relay Coupler [Swarmer] (88) Relay Coupler [Grunt] (49) Relay Coupler [Sentry] (50) Relay Coupler [Sentry] (51) Relay Coupler [Sentry] (36) Advanced Component Analysis Suite Trap Reconfigurator Enhanced Quantum Rifle Enhanced Nova Cannon Compact Tesla Bomb Launcher Compact Tesla Bomb Launcher Tactical Quantum Warhead Peak State ------------ > --- POWER ------------ Light Quantum Reactor Improved Quantum Reactor > --- PROPULSION ------- Centrium Heavy Treads Centrium Heavy Treads Biometal Heavy Treads Biometal Heavy Treads > --- UTILITY ---------- Experimental Heat Sink Advanced Cooling System Humpback Experimental Energy Well Experimental Targeting Computer Point Defense Array Relay Coupler [NC] Relay Coupler [Swarmer] Relay Coupler [Grunt] Relay Coupler [Sentry] Relay Coupler [Hunter] > --- WEAPON ----------- Enhanced Nova Cannon Enhanced Nova Cannon Enhanced Nova Cannon Enhanced Nova Cannon > --- INVENTORY -------- Biometal Medium Treads Advanced Heat Sink Advanced Heat Sink Compact Matter Pod Improved Remote Force Field Hacking Suite Advanced System Shield Relay Coupler [NC] Relay Coupler [NC] Relay Coupler [NC] Relay Coupler [Swarmer] Relay Coupler [Swarmer] Relay Coupler [Swarmer] Relay Coupler [Grunt] Relay Coupler [Grunt] Relay Coupler [Brawler] Relay Coupler [Duelist] Relay Coupler [Sentry] Relay Coupler [Sentry] Relay Coupler [Sentry] Advanced Component Analysis Suite Trap Reconfigurator Advanced Field Recycling Unit Enhanced Quantum Rifle Enhanced Quantum Rifle Enhanced Nova Cannon Enhanced Nova Cannon Enhanced Nova Cannon Enhanced Nova Cannon Hardcell Cannon Micro-nuke Launcher Micro-nuke Launcher Tactical Quantum Warhead Advanced Remote Datajack Power Maul [Rating: 199] Favorites ----------- Power Neutrino Core Engine Improved Deuterium Engine Power Core Neutrino Core Reactor Particle Reactor Propulsion Light Treads Treads Light Treads Leg Aluminum Leg Hover Unit Improved Antigrav System Utility Relay Coupler [Grunt] Device Experimental Heat Sink Storage Humpback Processor Advanced Targeting Computer Hackware Relay Coupler [Grunt] Protection Layered Light Armor Plating Weapon Enhanced Nova Cannon Energy Gun Advanced Beam Rifle Energy Cannon Enhanced Nova Cannon Ballistic Gun Hypervelocity Gauss Rifle Ballistic Cannon Tri-rail Accelerator Launcher Smartbomb Launcher Special Weapon Advanced Remote Datajack Impact Weapon Flail Slashing Weapon Longsword +1 Special Melee Weapon Datajack Build | -11 -10 -10 -10 -9 -8 -8 -8 -8 -6 -6 -5 -5 -5 -5 -4 -4 -3 -2 -2 -2 -2 -1 ------- Run | Scr Mat Min Exi Min Mat Sto Gar Rec Fac Gar Fac Gar Fac Gar Fac Gar Res Res Gar Res Gar Acc Slots Evolved 19 | . 1 . . . 4 . . . 4 . 2 . . . 2 . 2 2 . . . 2 Power 1 | . . . . . . . . . . . . . . . . . . . . . . 1 Propulsion 6 | . . . . . 2 . . . 2 . . . . . . . 2 . . . . . Utility 10 | . 1 . . . 1 . . . 2 . 2 . . . 1 . . 2 . . . 1 Weapon 2 | . . . . . 1 . . . . . . . . . 1 . . . . . . . Parts Attached 650 | . 14 3 5 8 41 18 7 . 21 27 35 35 69 30 41 14 125 14 23 14 28 78 Power 29 | . 1 . . 1 2 . . . 2 1 2 . 2 1 2 1 3 2 . 1 . 8 Engine 5 | . . . . . 2 . . . 2 1 . . . . . . . . . . . . Core 8 | . 1 . . 1 . . . . . . 1 . 2 1 1 1 . . . . . . Reactor 16 | . . . . . . . . . . . 1 . . . 1 . 3 2 . 1 . 8 Propulsion 91 | . 2 . . . 12 7 . . 9 3 7 5 4 2 4 . 12 8 1 2 2 11 Treads 88 | . 2 . . . 11 7 . . 9 3 7 5 4 2 4 . 10 8 1 2 2 11 Leg 1 | . . . . . 1 . . . . . . . . . . . . . . . . . Wheel . | . . . . . . . . . . . . . . . . . . . . . . . Hover 2 | . . . . . . . . . . . . . . . . . 2 . . . . . Flight . | . . . . . . . . . . . . . . . . . . . . . . . Utility 251 | . 5 1 3 4 11 1 4 . 4 6 9 9 21 10 22 10 63 3 14 8 9 34 Device 111 | . . 1 2 3 4 1 2 . . . 1 2 10 2 13 4 31 2 6 6 4 17 Storage 30 | . 1 . 1 . 1 . 1 . . . 1 1 4 . 2 1 13 . . 1 . 3 Processor 13 | . 2 . . . 1 . . . . . 1 . 3 . . . 3 1 . 1 . 1 Hackware 55 | . . . . . . . . . 3 5 3 5 . 6 1 5 7 . 6 . 4 10 Protection 42 | . 2 . . 1 5 . 1 . 1 1 3 1 4 2 6 . 9 . 2 . 1 3 Artifact . | . . . . . . . . . . . . . . . . . . . . . . . Weapon 279 | . 6 2 2 3 16 10 3 . 6 17 17 21 42 17 13 3 47 1 8 3 17 25 Energy Gun 16 | . . . . . 8 3 . . 1 1 1 . 2 . . . . . . . . . Energy Cannon 30 | . . . . . . . . . . . . . 2 . . . 6 1 4 1 9 7 Ballistic Gun 45 | . 3 1 1 1 3 4 2 . 1 6 5 7 4 . . . 4 . 1 . 2 . Ballistic Cannon 54 | . 2 . . 2 3 . . . . 1 1 3 14 8 4 3 11 . 1 . . 1 Launcher 35 | . . . . . 1 2 1 . . 2 1 5 . 4 2 . 4 . 1 1 3 8 Special Weapon 58 | . . 1 . . . . . . . 3 6 2 10 4 4 . 16 . 1 . 3 8 Impact Weapon 36 | . 1 . . . 1 1 . . 1 4 3 4 9 1 3 . 6 . . 1 . 1 Slashing Weapon 1 | . . . 1 . . . . . . . . . . . . . . . . . . . Piercing Weapon . | . . . . . . . . . . . . . . . . . . . . . . . Special Melee Weapon 4 | . . . . . . . . . 3 . . . 1 . . . . . . . . . Unidentified Prototypes 13 | . . . 2 1 1 3 . . . 1 1 1 1 . 1 . 1 . . . . . Parts Lost 26 | . . . . . . . . . . . . 1 1 . . 2 6 . . . 5 11 Power . | . . . . . . . . . . . . . . . . . . . . . . . Propulsion 2 | . . . . . . . . . . . . . . . . . 2 . . . . . Utility 14 | . . . . . . . . . . . . . 1 . . 2 3 . . . 1 7 Weapon 10 | . . . . . . . . . . . . 1 . . . . 1 . . . 4 4 Highest Loss Streak 3 | . . . . . . . . . . . . 1 1 . . 1 2 . . . 2 3 Average Slot Usage (%) 84 | . 99 99 91 99 98 99 95 91 91 92 87 88 76 72 79 79 74 82 77 78 73 78 Engine 1 | . 1 . . . 6 8 8 8 6 6 . . . . . . . . . . . . Core 2 | . 10 12 12 12 1 . . . . . 2 5 5 4 2 . . . . . . . Reactor 1 | . . . . . . . . . . . 1 . . . 2 4 3 4 4 4 4 6 Treads 23 | . 23 25 25 25 31 32 33 33 36 37 28 28 16 18 20 20 18 15 16 16 15 14 Device 4 | . . 11 7 . 7 7 8 8 1 . 1 . 1 3 4 4 3 3 4 7 8 9 Storage 6 | . 12 12 12 12 8 8 8 8 6 6 5 5 6 5 5 9 6 4 4 4 4 4 Processor 5 | . 12 12 12 12 8 8 8 8 6 6 5 5 5 5 5 5 4 7 7 4 4 1 Hackware 13 | . . . . . . . . . 8 12 18 20 19 20 19 19 18 20 17 20 15 22 Protection 4 | . 11 . . 11 8 8 4 . 5 6 5 5 4 2 4 1 2 8 7 5 3 1 Energy Gun 1 | . . . . . 9 15 8 8 2 . . . . . . . . . . . . . Energy Cannon 1 | . . . . . . . . . . . . . . . . . 1 2 4 7 10 10 Ballistic Gun 5 | . 11 11 8 12 8 8 12 16 10 10 11 8 3 . . . . . . . 1 . Ballistic Cannon 4 | . 11 12 12 11 5 . . . . . . 1 5 6 9 9 7 8 2 . . . Special Weapon 2 | . . . . . . . . . . 3 2 1 1 3 4 5 3 4 3 4 1 2 Naked Turns . | . . . . . . . . . . . . . . . . . . . . . . . Heaviest Build 307 | 19 33 33 91 94 107 108 221 221 225 237 244 242 250 246 256 260 270 95 92 267 278 307 Greatest Support 315 | 20 40 40 40 40 82 82 82 82 138 152 184 184 210 210 212 212 305 305 315 315 310 310 Greatest Overweight (x) 10 | . . . 2 2 10 1 2 2 1 1 1 1 1 1 1 1 1 . . . 1 1 Average Overweight (x) . | . . . 1 2 1 1 1 2 1 1 1 1 1 1 1 1 . . . . . . Largest Inventory Capacity 35 | 10 15 15 25 25 25 25 35 35 35 35 35 35 35 35 35 35 35 15 15 35 35 35 Average Capacity 30 | 10 14 15 24 25 25 25 29 35 35 35 35 35 35 35 35 35 33 15 15 33 35 30 Most Carried 35 | 7 15 15 25 25 25 25 35 35 35 35 35 35 35 35 35 35 35 15 15 28 35 35 Average Carried 29 | 7 12 15 20 21 24 24 28 35 34 34 34 34 34 34 34 34 32 14 14 25 32 30 Final Capacity 35 | 10 15 15 25 25 25 25 35 35 35 35 35 35 35 35 35 35 15 15 15 35 35 25 Final Carried 35 | 7 15 15 22 25 25 25 35 35 35 35 35 35 35 35 35 35 15 15 15 27 35 25 Class Distribution -------------------- 25% | Bothacker-Mutant 22% | Botlord-Mutant 13% | Botlord-Skirmisher 12% | Hacker-Mutant 10% | Hacker-Skirmisher 9% | Bothacker-Skirmisher 4% | Botlord-Tank Dominant Class ---------------- Hacker-Mutant | -10/Materials Hacker-Mutant | -10/Mines Hacker-Mutant | -10/Exiles Hacker-Mutant | -9/Mines Hacker-Skirmisher | -8/Materials Hacker-Skirmisher | -8/Storage Bothacker-Skirmisher | -8/Garrison Bothacker-Skirmisher | -8/Recycling Bothacker-Mutant | -6/Factory Bothacker-Mutant | -6/Garrison Bothacker-Mutant | -5/Factory Bothacker-Mutant | -5/Garrison Bothacker-Mutant | -5/Factory Botlord-Mutant | -5/Garrison Botlord-Tank | -4/Factory Botlord-Skirmisher | -4/Garrison Botlord-Mutant | -3/Research Bothacker-Mutant | -2/Research Botlord-Mutant | -2/Garrison Botlord-Mutant | -2/Research Botlord-Mutant | -2/Garrison Botlord-Mutant | -1/Access Resources | -11 -10 -10 -10 -9 -8 -8 -8 -8 -6 -6 -5 -5 -5 -5 -4 -4 -3 -2 -2 -2 -2 -1 ----------- Run | Scr Mat Min Exi Min Mat Sto Gar Rec Fac Gar Fac Gar Fac Gar Fac Gar Res Res Gar Res Gar Acc Matter Collected 18919 | 171 224 371 . 188 842 302 384 32 422 772 1091 1079 1869 1275 1561 792 3558 366 888 376 771 1585 Remotely 1807 | . . . . . . . . . . . . . . 750 490 63 504 . . . . . Salvage Created 26137 | . 201 240 . 100 1636 897 538 101 727 720 2199 429 1418 631 1847 298 3022 531 1142 1256 1502 6702 Parts 1185 | . 14 15 . 8 89 48 26 16 39 37 100 24 64 36 88 11 180 19 33 68 40 230 Haulers Intercepted 12 | . . . . . 5 2 . . 1 . 1 . . . . . 3 . . . . . Recyclers Shooed 17 | . . . . . 1 . . 1 1 . 6 . 2 . 1 . 2 . . 2 . 1 Parts Field Recycled 4 | . . . . . . . . . . . . . . . . . . 4 . . . . Retrieved Matter 256 | . . . . . . . . . . . . . . . . . . 256 . . . . Parts Self-Destructed . | . . . . . . . . . . . . . . . . . . . . . . . Prevented . | . . . . . . . . . . . . . . . . . . . . . . . Kills | -11 -10 -10 -10 -9 -8 -8 -8 -8 -6 -6 -5 -5 -5 -5 -4 -4 -3 -2 -2 -2 -2 -1 ------- Run | Scr Mat Min Exi Min Mat Sto Gar Rec Fac Gar Fac Gar Fac Gar Fac Gar Res Res Gar Res Gar Acc Combat Hostiles Destroyed 441 | . 4 6 . 2 24 18 18 10 11 17 17 15 27 21 46 11 54 5 16 13 20 86 Guns 130 | . 2 3 . 1 17 18 14 10 11 13 17 5 8 . . . 9 . . . 2 . Cannons 256 | . 2 3 . 1 7 . . . . . . 2 18 13 44 11 40 4 13 13 11 74 AOE 40 | . . . . . . . 4 . . 4 . 8 . 8 2 . 4 . 3 . 4 3 Classes Destroyed 21 | . 2 2 . 3 3 1 2 1 2 1 . 2 . . . . . . . 1 1 . Worker 20 | . . . . 1 1 . . . 1 . 7 . 1 . 2 . . . . 3 . 4 Builder 9 | . . . . . . 1 . . 1 . 2 . 1 . 1 . 1 . . 1 . 1 Tunneler 3 | . . . . 1 1 . . . . . . . . . . . . . . . . 1 Hauler 12 | . . . . . 5 2 . . 1 . 1 . . . . . 3 . . . . . Recycler 21 | . . 1 . . 4 . . . . . 6 . 2 . 3 . 1 . . 1 . 3 Carrier 4 | . . . . . . . . . . 1 . . . . . . . . 1 . . 2 Drone 10 | . . . . . . . . 10 . . . . . . . . . . . . . . Watcher 14 | . 2 . . . 3 2 . . . . 2 . . . . . 3 . . 1 . 1 Swarmer 92 | . . 2 . . 5 6 8 . 2 9 5 7 3 9 15 7 6 . . . . 8 Saboteur 5 | . . . . . . . . . . . . . . . . . . . . . 2 3 Grunt 125 | . 4 4 . 1 12 5 6 . 3 5 2 5 3 5 8 2 4 3 6 1 15 31 Brawler 15 | . . . . . . . . . 1 . . . . . . . . . 1 . . 13 Duelist 13 | . . . . 1 1 . . . . 2 . . . 1 . . . . 1 . . 7 Protector 4 | . . . . . 1 . . . . . . 1 . . . . . . . . . 2 Sentry 27 | . . . . . 5 7 2 . 1 . 2 . . 3 1 1 2 . 1 . 1 1 Demolisher 2 | . . . . . . . . . . . . 1 . . . . . . . . . 1 Specialist 4 | . . . . . . . 1 . . . . . . 2 . . . . . . . 1 Hunter 43 | . . . . . . . 1 . 2 . 1 . 4 2 7 1 8 2 4 3 3 5 Programmer 105 | . . . . . . . . . 2 1 8 . 17 . 15 . 33 2 2 8 . 17 Behemoth 5 | . . . . . . . . . . . . 1 . 1 . . 1 . 1 . 1 . Executioner 1 | . . . . . . . . . . . . . . . . . . . . 1 . . Best Kill Streak 12 | . 2 3 . 2 7 4 6 3 4 6 6 4 5 3 6 4 6 2 2 6 6 12 Combat Bots Only 12 | . 2 2 . 2 6 4 6 3 3 6 3 4 5 3 6 4 6 2 2 4 6 12 Max Kills in Single Turn 3 | . 1 1 . 1 2 2 2 1 2 2 3 3 1 2 2 1 3 1 1 2 2 3 Gunslinging 1 | . . . . . . 1 . . . 1 . . . . . . . . . . . . Exploded 3 | . . . . . . . 2 . . 2 . 3 . 2 2 . 3 . 1 . 2 1 Melee . | . . . . . . . . . . . . . . . . . . . . . . . Uniques/NPCs Destroyed . | . . . . . . . . . . . . . . . . . . . . . . . Combat | -11 -10 -10 -10 -9 -8 -8 -8 -8 -6 -6 -5 -5 -5 -5 -4 -4 -3 -2 -2 -2 -2 -1 -------- Run | Scr Mat Min Exi Min Mat Sto Gar Rec Fac Gar Fac Gar Fac Gar Fac Gar Res Res Gar Res Gar Acc Damage Taken 21833 | . 81 82 . 14 761 478 399 . 784 423 1333 976 1078 483 995 635 3957 234 1154 1190 1697 5079 Core 1381 | . 19 11 . . 77 18 59 . 20 51 92 24 30 42 20 41 501 13 59 59 42 203 Absorbed by Shields 1120 | . . . . . . . 7 . . . . . 23 8 293 197 228 . . . . 364 Reduced by Siege Mode 777 | . . . . . . . . . . . 15 . . 4 . . 93 . 27 91 16 531 Core Remaining (%) 84 | 100 . . . 88 . . . 72 . 91 . . . 81 . 94 61 . . . 88 87 Volleys Fired 1430 | . 15 16 . 10 71 36 41 10 31 44 73 54 108 65 100 45 182 21 91 54 97 266 Largest 4 | . 2 2 . 2 3 3 3 3 3 3 3 3 3 2 2 2 3 3 3 2 4 4 Hottest 480 | . 55 100 . 55 200 150 132 117 150 117 141 147 180 117 117 126 239 245 299 240 393 480 Shots Fired 2786 | . 30 29 . 20 211 105 98 30 77 77 157 85 186 75 158 69 337 40 134 100 194 574 Gun 893 | . 15 13 . 10 158 104 93 30 77 60 140 43 76 . . . 45 . 8 . 21 . Cannon 1539 | . 15 13 . 10 53 . . . . 3 5 6 80 43 135 55 237 35 92 93 142 522 Launcher 93 | . . . . . . 1 5 . . 4 . 28 . 14 1 . 3 . 16 . 15 6 Special 261 | . . 3 . . . . . . . 10 12 8 30 18 22 14 52 5 18 7 16 46 Kinetic 1274 | . 30 26 . 20 117 36 53 20 60 59 143 49 117 43 135 55 237 20 33 . 21 . Thermal 1154 | . . 3 . . 94 68 40 10 17 4 2 . 39 . . . 45 15 67 93 135 522 Explosive 83 | . . . . . . . 5 . . 4 . 21 . 14 1 . 3 . 16 . 15 4 Electromagnetic 17 | . . . . . . 1 . . . . . 7 . . . . . . . . 7 2 Robot Hit Streak 122 | . 8 13 . 17 95 122 24 4 53 45 64 23 45 51 50 38 79 80 94 41 32 116 Robot Miss Streak 3 | . 2 1 . 1 1 1 2 2 2 1 2 1 1 2 3 1 1 . 1 1 1 1 Penetration Max 3 | . . . . . 1 1 . . 1 . 3 1 1 . 1 . 2 . 1 . . . Secondary Targets 14 | . . . . . 2 4 2 . . 4 1 1 . . . . . . . . . . Max Gunslinging Chain 1 | . . . . . 1 1 1 . . 1 1 1 . . . . . . . . . . Shots Hit Robots 2011 | . 21 21 . 17 174 76 59 14 77 58 134 51 144 38 130 54 262 30 89 69 117 376 Core Hits 941 | . 8 14 . 6 66 34 28 10 29 24 77 42 50 40 82 21 116 11 43 25 50 165 Critical Kills 74 | . . . . . 1 . . . 1 3 24 3 3 . . 2 21 5 2 . 1 8 Critical Parts Destroyed 92 | . . 1 . . . . 1 . . 2 39 6 3 . . . 30 3 7 . . . Critical Strikes 230 | . 2 1 . . 13 5 3 . 3 5 65 9 12 5 21 4 55 8 10 . 1 8 Burn 18 | . . . . . 8 5 2 . 2 . 1 . . . . . . . . . . . Meltdown 12 | . . . . . . . . . . . . . 1 . . . 1 1 . . 1 8 Destroy 156 | . . 1 . . 1 . 1 . 1 5 62 9 5 . . 2 52 7 10 . . . Blast 43 | . 2 . . . 4 . . . . . 1 . 6 5 21 2 2 . . . . . Smash 1 | . . . . . . . . . . . 1 . . . . . . . . . . . Melee Attacks 126 | . 1 . . . 2 1 . . 36 11 21 11 25 2 1 . 10 5 . . . . Impact 113 | . 1 . . . 2 1 . . 25 11 21 11 23 2 1 . 10 5 . . . . Slashing . | . . . . . . . . . . . . . . . . . . . . . . . Piercing . | . . . . . . . . . . . . . . . . . . . . . . . Sneak Attacks 13 | . . . . . . . . . 7 . 3 . 3 . . . . . . . . . Combat Hostiles . | . . . . . . . . . . . . . . . . . . . . . . . Follow-up Attacks . | . . . . . . . . . . . . . . . . . . . . . . . Damage Inflicted 68104 | . 307 303 . 280 2950 1608 2011 378 1496 1311 2405 1981 4069 2758 5983 1823 8377 545 4077 3031 5532 16879 Guns 12043 | . 166 146 . 108 2289 1608 1195 378 1496 954 1225 263 1235 . . . 413 . 176 . 391 . Cannons 44401 | . 141 157 . 163 661 . . . . . 199 130 2741 1228 5700 1823 7095 545 2257 2989 3481 15091 Explosions 11093 | . . . . . . . 816 . . 357 587 1588 . 1530 283 . 840 . 1644 . 1660 1788 Melee 472 | . . . . . . . . . . . 379 . 93 . . . . . . . . . Ramming 95 | . . . . 9 . . . . . . 15 . . . . . 29 . . 42 . . Kinetic 27219 | . 307 303 . 271 1538 558 595 298 1163 879 1404 393 3358 1228 5700 1823 6311 173 526 . 391 . Thermal 29152 | . . . . . 1412 1050 600 80 333 75 104 . 618 . . . 1197 372 1907 2989 3324 15091 Explosive 10508 | . . . . . . . 816 . . 357 503 1391 . 1530 283 . 840 . 1644 . 1660 1484 Electromagnetic 658 | . . . . . . . . . . . . 197 . . . . . . . . 157 304 Impact 472 | . . . . . . . . . . . 379 . 93 . . . . . . . . . Slashing . | . . . . . . . . . . . . . . . . . . . . . . . Piercing . | . . . . . . . . . . . . . . . . . . . . . . . Highest Corruption 18 | . . . . . . . . . 1 3 4 4 11 11 . . 18 1 1 2 2 15 Average Corruption 5 | . . . . . . . . . 1 2 3 4 6 11 . . 5 1 1 1 2 9 Corruption Purged . | . . . . . . . . . . . . . . . . . . . . . . . Effects 630 | . . . . . . . . . 8 44 38 50 150 92 . . 103 1 4 4 25 111 Message Errors 156 | . . . . . . . . . 3 11 12 14 33 19 . . 24 1 4 1 11 23 Matter Fused 140 | . . . . . . . . . . 8 11 17 37 18 . . 28 . . . . 21 Heat Flow Errors 71 | . . . . . . . . . . 3 4 7 18 6 . . 14 . . 2 4 13 Energy Discharges 85 | . . . . . . . . . 3 11 6 5 18 8 . . 15 . . 1 6 12 Parts Rejected 7 | . . . . . . . . . . . . 1 2 1 . . 1 . . . . 2 Data Loss (minor) 84 | . . . . . . . . . 2 11 5 5 19 13 . . 9 . . . 4 16 Data Loss (major) 15 | . . . . . . . . . . . . . 7 2 . . 1 . . . . 5 Misfires 20 | . . . . . . . . . . . . . 7 4 . . 3 . . . . 6 Alerts 5 | . . . . . . . . . . . . . 1 3 . . . . . . . 1 Misdirections 32 | . . . . . . . . . . . . . 7 16 . . 6 . . . . 3 Weapon Failures 15 | . . . . . . . . . . . . 1 1 2 . . 2 . . . . 9 Overload Shots . | . . . . . . . . . . . . . . . . . . . . . . . Overflow Damage 2217 | . 7 . . . 21 . 18 . . . 88 1 187 95 215 40 216 . 151 187 109 882 Projectiles 1784 | . 7 . . . 21 . . . . . 5 . 124 . 215 40 187 . 123 187 65 810 Explosions 308 | . . . . . . . 18 . . . 37 1 . 95 . . 13 . 28 . 44 72 Melee 125 | . . . . . . . . . . . 46 . 63 . . . 16 . . . . . Knockbacks 159 | . . . . 4 14 . . . . . 5 2 28 5 38 6 52 2 3 . . . Impact 3 | . . . . . . . . . . . 1 . 1 . . . 1 . . . . . Kinetic 146 | . . . . 4 14 . . . . . 4 1 25 5 34 5 49 2 3 . . . Secondary 10 | . . . . . . . . . . . . 1 2 . 4 1 2 . . . . . Self-Inflicted Damage 280 | . . . . . . . . . . . 35 . . . . . . . 69 . 51 125 Shots 5 | . . . . . . . . . . . 1 . . . . . . . 1 . 1 2 Rammed 4 | . . . . 1 . . . . . . . . . . . . 1 . . 2 . . Targets Rammed 5 | . . . . 1 . . . . . . 1 . . . . . 1 . . 2 . . Kicked . | . . . . . . . . . . . . . . . . . . . . . . . Crushed 1 | . . . . . . . . . . . 1 . . . . . . . . . . . Highest Temperature 591 | . 135 84 . 66 252 260 40 . 269 268 194 215 264 256 121 110 591 257 272 276 199 471 Average Temperature 76 | . 43 41 . 24 48 57 12 . 105 68 41 48 75 47 25 29 96 92 83 105 86 112 Received Heat Transfer 4274 | . 96 105 . 12 504 288 297 . 120 120 126 222 210 138 70 91 172 18 252 72 378 983 Effects 28 | . . . . . . . . . 2 . . . . 1 . . 14 1 . . . 10 Shutdowns 3 | . . . . . . . . . . . . . . . . . 1 . . . . 2 Energy Bleed 5 | . . . . . . . . . . . . . . 1 . . 2 1 . . . 1 Interference 9 | . . . . . . . . . 2 . . . . . . . 2 . . . . 5 Matter Decay 1 | . . . . . . . . . . . . . . . . . 1 . . . . . Short Circuit 2 | . . . . . . . . . . . . . . . . . 2 . . . . . Damage (minor) 1 | . . . . . . . . . . . . . . . . . 1 . . . . . Damage (major) 6 | . . . . . . . . . . . . . . . . . 4 . . . . 2 Damage (core) 1 | . . . . . . . . . . . . . . . . . 1 . . . . . Siege Activations 28 | . . . . . . . . . . . 1 . . 1 . . 6 . 3 3 1 13 Total Turns 486 | . . . . . . . . . . . 13 . . 7 . . 61 . 49 45 29 282 Longest Duration 54 | . . . . . . . . . . . 13 . . 7 . . 26 . 41 23 29 54 Robots Corrupted 2 | . . . . . . . . . . . . . . . . . . . . . 1 1 Combat Hostiles 2 | . . . . . . . . . . . . . . . . . . . . . 1 1 Parts Fried 11 | . . . . . . . . . . . 5 1 2 . . . . . . . . 3 Impact Corruptions 5 | . . . . . . . . . . . 3 . 1 . . . 1 . . . . . Robots Melted 14 | . . . . . . . . . . . . . 1 . . . 1 1 . . 2 9 Combat Hostiles 13 | . . . . . . . . . . . . . 1 . . . 1 1 . . 2 8 Parts Melted 61 | . . . . . 7 4 3 . 2 1 . . 4 . . . 3 2 . 4 3 28 Heat Transferred 30429 | . . . . . 3920 2479 1163 148 777 111 311 . 883 . . . 1203 333 1628 2405 2715 12353 Parts Sabotaged . | . . . . . . . . . . . . . . . . . . . . . . . Parts Stolen . | . . . . . . . . . . . . . . . . . . . . . . . Parts Stripped . | . . . . . . . . . . . . . . . . . . . . . . . Power Chain Reactions . | . . . . . . . . . . . . . . . . . . . . . . . Missiles Intercepted . | . . . . . . . . . . . . . . . . . . . . . . . Alert | -11 -10 -10 -10 -9 -8 -8 -8 -8 -6 -6 -5 -5 -5 -5 -4 -4 -3 -2 -2 -2 -2 -1 ------- Run | Scr Mat Min Exi Min Mat Sto Gar Rec Fac Gar Fac Gar Fac Gar Fac Gar Res Res Gar Res Gar Acc Peak Influence 2071 | . 181 85 . 60 290 192 753 485 1003 849 483 694 308 798 489 610 478 193 1154 1050 1415 2071 Initial 961 | . . . . . . . 30 244 961 123 330 8 270 5 310 8 257 . . 487 236 641 Average 370 | . 52 33 . 7 62 61 557 347 658 603 150 404 69 379 123 392 112 32 604 591 973 1504 Maximum Alert Level 5 | . . . . . 1 . 3 2 3 3 2 2 1 3 2 2 2 . 4 3 4 5 Low Security (%) 52 | 100 100 100 . 100 99 100 14 4 . 16 69 24 92 28 72 24 78 100 11 . . . Level 1 12 | . . . . . . . 7 64 13 2 25 20 7 20 23 12 20 . 29 15 12 . Level 2 16 | . . . . . . . 29 31 39 43 4 55 . 43 4 62 1 . 20 68 11 . Level 3 10 | . . . . . . . 49 . 46 37 . . . 7 . . . . 26 15 30 17 Level 4 4 | . . . . . . . . . . . . . . . . . . . 12 . 45 29 Level 5 3 | . . . . . . . . . . . . . . . . . . . . . . 52 High Security . | . . . . . . . . . . . . . . . . . . . . . . . Max Security . | . . . . . . . . . . . . . . . . . . . . . . . Squads Dispatched 98 | . . . . . 4 3 . . 6 . 10 . 10 . 12 . 21 1 . 3 . 28 Investigation 2 | . . . . . 1 . . . 1 . . . . . . . . . . . . . Extermination 46 | . . . . . . . . . 3 . 4 . 9 . 7 . 14 1 . 3 . 5 Reinforcement 23 | . . . . . 2 3 . . 2 . 3 . 1 . 4 . 7 . . . . 1 Assault 18 | . . . . . 1 . . . . . . . . . . . . . . . . 17 Garrison 9 | . . . . . . . . . . . 3 . . . 1 . . . . . . 5 Intercept . | . . . . . . . . . . . . . . . . . . . . . . . Construction Impeded 4 | . . . . . . 1 . . . . 1 . . . 2 . . . . . . . Haulers Reinforced 6 | . . . . . . . . . 1 . . . 1 . . . 3 . . . . 1 Cargo Convoy Interrupts . | . . . . . . . . . . . . . . . . . . . . . . . Stealth | -11 -10 -10 -10 -9 -8 -8 -8 -8 -6 -6 -5 -5 -5 -5 -4 -4 -3 -2 -2 -2 -2 -1 --------- Run | Scr Mat Min Exi Min Mat Sto Gar Rec Fac Gar Fac Gar Fac Gar Fac Gar Res Res Gar Res Gar Acc Distress Signals 17 | . . . . . 5 2 . . 1 . 2 . . . 3 . 2 . . . . 2 Communications Jammed 490 | . . . . . . . . . . . . . . . . . 99 51 . 44 . 296 Distress Signals 490 | . . . . . . . . . . . . . . . . . 99 51 . 44 . 296 Times Spotted 812 | . 14 6 . 2 47 25 19 15 23 26 46 25 54 28 75 23 97 14 35 31 33 174 Peak Tracking Total 11 | . 4 2 . 2 5 5 4 4 7 11 7 4 4 5 6 6 7 5 4 7 3 9 Tactical Retreats 38 | . 3 . . . 2 . 2 . . . 4 2 2 . 1 1 4 . 8 . 1 8 Traps | -11 -10 -10 -10 -9 -8 -8 -8 -8 -6 -6 -5 -5 -5 -5 -4 -4 -3 -2 -2 -2 -2 -1 ------- Run | Scr Mat Min Exi Min Mat Sto Gar Rec Fac Gar Fac Gar Fac Gar Fac Gar Res Res Gar Res Gar Acc Traps Triggered 63 | . 2 . . 1 2 1 9 . 2 6 1 7 2 3 2 14 3 1 1 1 3 2 Indirectly . | . . . . . . . . . . . . . . . . . . . . . . . Trap Hack Attempts . | . . . . . . . . . . . . . . . . . . . . . . . Triggered . | . . . . . . . . . . . . . . . . . . . . . . . Disarmed . | . . . . . . . . . . . . . . . . . . . . . . . Reprogrammed . | . . . . . . . . . . . . . . . . . . . . . . . Reused 17 | . . . . . 1 . . . . . . . 5 . . . 10 . . . . 1 Traps Reconfigurated 54 | . . . . . 2 . 1 . . . . . 15 1 6 1 26 . 1 . . 1 Traps Extracted 7 | . . . . . . . . . . . . . . . . . 7 . . . . . Installed 5 | . . . . . . . . . . . . . . . . . 5 . . . . . Triggered 17 | . . . . . 1 . . . . . . . 5 . . . 10 . . . . 1 Exploded 3 | . . . . . 1 2 . . . . . . . . . . . . . . . . Machines | -11 -10 -10 -10 -9 -8 -8 -8 -8 -6 -6 -5 -5 -5 -5 -4 -4 -3 -2 -2 -2 -2 -1 ---------- Run | Scr Mat Min Exi Min Mat Sto Gar Rec Fac Gar Fac Gar Fac Gar Fac Gar Res Res Gar Res Gar Acc Machines Disabled 105 | . . . . . 3 5 5 7 9 8 7 6 11 10 4 5 4 1 8 . 6 6 Max in Single Turn 6 | . . . . . 1 1 1 . 1 2 6 2 3 2 3 1 1 1 2 . 1 1 Garrison Access 4 | . . . . . 1 . . . . . . . . . 1 . . . . . . 2 Garrison Relay 31 | . . . . . . . 4 . . 5 . 4 . 5 . 4 . . 5 . 4 . Phase Generator 2 | . . . . . . . . . . . . . . 1 . . . . 1 . . . Energy Cycler 1 | . . . . . . . . . . . . . . . . . . . . . . 1 Machines Sabotaged . | . . . . . . . . . . . . . . . . . . . . . . . Garrisons Compromised . | . . . . . . . . . . . . . . . . . . . . . . . Overloaded Fab Kills . | . . . . . . . . . . . . . . . . . . . . . . . Fab Network Shutdowns 1 | . . . . . . . . . . . . . . . . . . . . 1 . . Hacking | -11 -10 -10 -10 -9 -8 -8 -8 -8 -6 -6 -5 -5 -5 -5 -4 -4 -3 -2 -2 -2 -2 -1 --------- Run | Scr Mat Min Exi Min Mat Sto Gar Rec Fac Gar Fac Gar Fac Gar Fac Gar Res Res Gar Res Gar Acc Machines Accessed 97 | . 9 . 2 2 8 11 . 2 8 . 6 . 17 . 7 . 11 1 . 8 . 5 Terminals 56 | . 8 . . 1 5 9 . 2 3 . 2 . 10 . 2 . 5 . . 5 . 4 Fabricators 9 | . . . . . . . . . 2 . . . 1 . 1 . 2 . . 2 . 1 Repair Stations 10 | . 1 . . . 1 1 . . 2 . 1 . 1 . 1 . 2 . . . . . Recycling Units 4 | . . . . . 1 . . . . . 1 . 1 . 1 . . . . . . . Scanalyzers 7 | . . . . . 1 . . . . . 1 . 3 . . . 2 . . . . . Garrison Access 8 | . . . . . . 1 . . 1 . 1 . 1 . 2 . . 1 . 1 . . Total Hacks 281 | . 48 . 17 3 35 30 . 7 18 . 9 . 36 . 15 . 27 1 . 23 . 12 Successful 183 | . 31 . 17 1 28 23 . 5 10 . 4 . 22 . 11 . 14 1 . 14 . 2 Failed 98 | . 17 . . 2 7 7 . 2 8 . 5 . 14 . 4 . 13 . . 9 . 10 Catastrophic 16 | . 1 . . . 1 . . . 3 . 2 . 3 . . . 2 . . 1 . 3 Database Lockouts . | . . . . . . . . . . . . . . . . . . . . . . . Manual 124 | . 38 . 1 . 20 6 . 7 8 . 3 . 14 . 6 . 7 . . 12 . 2 Terminals 179 | . 42 . . 2 25 23 . 7 10 . 4 . 19 . 7 . 13 . . 17 . 10 Fabricators 17 | . . . . . . . . . 4 . . . 1 . 2 . 4 . . 4 . 2 Repair Stations 31 | . 6 . . . 6 6 . . 3 . 2 . 2 . 2 . 4 . . . . . Recycling Units 6 | . . . . . 1 . . . . . 1 . 2 . 2 . . . . . . . Scanalyzers 20 | . . . . . 3 . . . . . 1 . 10 . . . 6 . . . . . Garrison Access 10 | . . . . . . 1 . . 1 . 1 . 2 . 2 . . 1 . 2 . . Terminal Hacks 101 | . 24 . 17 1 14 15 . 4 . . 1 . 8 . 3 . 5 . . 7 . 2 Record 24 | . . . 17 . 1 . . 1 . . . . 1 . 1 . 3 . . . . . Part Schematic 3 | . 1 . . . . 2 . . . . . . . . . . . . . . . . Robot Analysis 2 | . . . . . . . . . . . . . . . . . 1 . . . . 1 Prototype ID Bank 34 | . 18 . . . 11 4 . . . . . . . . . . . . . 1 . . Open Door 7 | . . . . 1 . 4 . . . . . . 1 . . . 1 . . . . . Level Access Points 1 | . . . . . . . . 1 . . . . . . . . . . . . . . Emergency Access Points 2 | . . . . . 1 . . . . . . . . . . . . . . 1 . . Machine Index 1 | . . . . . . . . . . . . . . . . . . . . 1 . . Terminal Index 1 | . . . . . . . . . . . . . . . 1 . . . . . . . Fabricator Index 2 | . . . . . . 1 . . . . . . . . 1 . . . . . . . Scanalyzer Index 1 | . . . . . . . . . . . . . 1 . . . . . . . . . Garrison Index 2 | . 1 . . . 1 . . . . . . . . . . . . . . . . . Alert Level 2 | . . . . . . 1 . 1 . . . . . . . . . . . . . . Unreport Threat 4 | . . . . . . 2 . . . . . . . . . . . . . 1 . 1 Locate Traps 7 | . 3 . . . . 1 . . . . . . 2 . . . . . . 1 . . Dispatch Records 1 | . . . . . . . . 1 . . . . . . . . . . . . . . Transport Status 2 | . . . . . . . . . . . 1 . 1 . . . . . . . . . Hauler Manifests 1 | . 1 . . . . . . . . . . . . . . . . . . . . . Registered Components 1 | . . . . . . . . . . . . . . . . . . . . 1 . . Zone Layout 3 | . . . . . . . . . . . . . 2 . . . . . . 1 . . Fabricator Hacks 10 | . . . . . . . . . 4 . . . . . 2 . 2 . . 2 . . Network Status 1 | . . . . . . . . . . . . . . . . . 1 . . . . . Load Schematic 4 | . . . . . . . . . 2 . . . . . 1 . . . . 1 . . Build 5 | . . . . . . . . . 2 . . . . . 1 . 1 . . 1 . . Repair Station Hacks 27 | . 5 . . . 6 6 . . 3 . 2 . 2 . 1 . 2 . . . . . Scan Component 16 | . 3 . . . 3 3 . . 2 . 1 . 1 . 1 . 2 . . . . . Repair 11 | . 2 . . . 3 3 . . 1 . 1 . 1 . . . . . . . . . Recycling Unit Hacks 4 | . . . . . 1 . . . . . . . 1 . 2 . . . . . . . Report Inventory 1 | . . . . . . . . . . . . . . . 1 . . . . . . . Retrieve Matter 1 | . . . . . . . . . . . . . 1 . . . . . . . . . Retrieve Components 2 | . . . . . 1 . . . . . . . . . 1 . . . . . . . Scanalyzer 14 | . . . . . 3 . . . . . . . 8 . . . 3 . . . . . Insert Component 8 | . . . . . 1 . . . . . . . 5 . . . 2 . . . . . Analyze 6 | . . . . . 2 . . . . . . . 3 . . . 1 . . . . . Garrison Access Hacks 8 | . . . . . . 1 . . 1 . 1 . 1 . 2 . . 1 . 1 . . Unlock Access 7 | . . . . . . 1 . . 1 . 1 . 1 . 1 . . 1 . 1 . . Seal Access 1 | . . . . . . . . . . . . . . . 1 . . . . . . . Unauthorized Hacks 19 | . 2 . . . 4 1 . 1 2 . . . 2 . 1 . 2 . . 4 . . Terminals 16 | . 2 . . . 4 1 . 1 2 . . . 1 . 1 . 1 . . 3 . . Assimilate 2 | . . . . . 1 . . . 1 . . . . . . . . . . . . . Botnet 12 | . 2 . . . 2 1 . 1 1 . . . 1 . 1 . 1 . . 2 . . Operators 2 | . . . . . 1 . . . . . . . . . . . . . . 1 . . Fabricators 2 | . . . . . . . . . . . . . 1 . . . 1 . . . . . Report 2 | . . . . . . . . . . . . . 1 . . . 1 . . . . . Repair Stations . | . . . . . . . . . . . . . . . . . . . . . . . Recycling Units . | . . . . . . . . . . . . . . . . . . . . . . . Scanalyzers . | . . . . . . . . . . . . . . . . . . . . . . . Garrison Access 1 | . . . . . . . . . . . . . . . . . . . . 1 . . Reprogram 1 | . . . . . . . . . . . . . . . . . . . . 1 . . Data Cores Recovered . | . . . . . . . . . . . . . . . . . . . . . . . Used . | . . . . . . . . . . . . . . . . . . . . . . . Hacking Detections 79 | . 9 . . 1 7 6 . 2 5 . 6 . 15 . 4 . 11 . . 8 . 5 Full Trace Events 3 | . . . . . 2 . . . 1 . . . . . . . . . . . . . Feedback Events . | . . . . . . . . . . . . . . . . . . . . . . . Feedback Blocked . | . . . . . . . . . . . . . . . . . . . . . . . Robot Schematics Acquired . | . . . . . . . . . . . . . . . . . . . . . . . Robots Built . | . . . . . . . . . . . . . . . . . . . . . . . Matter . | . . . . . . . . . . . . . . . . . . . . . . . Time . | . . . . . . . . . . . . . . . . . . . . . . . Total Robot Build Rating . | . . . . . . . . . . . . . . . . . . . . . . . Part Schematics Acquired 7 | . 1 . . . 1 2 . . . . . . 2 . . . 1 . . . . . Parts Built 8 | . . . . . . . . . 4 . . . . . 1 . 2 . . 1 . . Matter 818 | . . . . . . . . . 336 . . . . . 102 . 278 . . 102 . . Time 172 | . . . . . . . . . 84 . . . . . 25 . 46 . . 17 . . Total Part Build Rating 36 | . . . . . . . . . 16 . . . . . 1 . 18 . . 1 . . Parts Repaired 11 | . 2 . . . 3 3 . . 1 . 1 . 1 . . . . . . . . . Time 328 | . 26 . . . 102 108 . . 26 . 22 . 44 . . . . . . . . . Parts Recycled . | . . . . . . . . . . . . . . . . . . . . . . . Recycled Matter . | . . . . . . . . . . . . . . . . . . . . . . . Retrieved Matter . | . . . . . . . . . . . . . . . . . . . . . . . Retrieved Components 19 | . . . . . 9 . . . . . . . . . 10 . . . . . . . Parts Scanalyzed 6 | . . . . . 1 . . . . . . . 3 . . . 2 . . . . . Part Schematics Acquired 4 | . . . . . 1 . . . . . . . 2 . . . 1 . . . . . Parts Damaged . | . . . . . . . . . . . . . . . . . . . . . . . Bothacking | -11 -10 -10 -10 -9 -8 -8 -8 -8 -6 -6 -5 -5 -5 -5 -4 -4 -3 -2 -2 -2 -2 -1 ------------ Run | Scr Mat Min Exi Min Mat Sto Gar Rec Fac Gar Fac Gar Fac Gar Fac Gar Res Res Gar Res Gar Acc Used RIF Installer 7 | . . . . . . . 1 . . 1 . 1 . 1 . 1 . . 1 . 1 . Coupler Efficiency 2 | . . . . . . . . . . 1 . . . 1 . . . . . . . . Signal Jammer 1 | . . . . . . . . . . . . . . . . 1 . . . . . . Zone Cloak 2 | . . . . . . . . . . . . . . . . . . . 1 . 1 . Watcher Feeds 1 | . . . . . . . . . . . . 1 . . . . . . . . . . Robots Hacked 197 | . . . . . . . . . 9 9 9 8 22 14 17 11 31 4 13 6 10 34 Non-combat 54 | . . . . . . . . . 5 . 1 . 17 . 5 . 15 1 . 4 . 6 Combat 143 | . . . . . . . . . 4 9 8 8 5 14 12 11 16 3 13 2 10 28 Robot Hacks Applied 230 | . . . . . . . . . 11 9 9 8 28 15 21 13 43 4 13 6 10 40 parse_system 8 | . . . . . . . . . 1 . . . . . 1 1 3 . . . . 2 no_distress 4 | . . . . . . . . . 2 . . . 1 . . . . . . . . 1 generate_echo 2 | . . . . . . . . . . . . . 1 . . . 1 . . . . . find_chute 1 | . . . . . . . . . 1 . . . . . . . . . . . . . deconstruct_machine 5 | . . . . . . . . . . . . . 3 . . . 2 . . . . . ignore_repairs 6 | . . . . . . . . . 1 . . . 3 . . . . . . . . 2 drop_inventory 20 | . . . . . . . . . 1 . 1 . 5 . 2 . 5 1 . 2 . 3 recall_reinforcements 4 | . . . . . . . . . . . . . 1 . . . 3 . . . . . locate_stockpiles 1 | . . . . . . . . . . . . . 1 . . . . . . . . . ignore_parts 15 | . . . . . . . . . 1 . . . 6 . 5 . . . . 2 . 1 mark_security 1 | . . . . . . . . . . . . . . . . . 1 . . . . . find_garrison 2 | . . . . . . . . . . . . . 1 . 1 . . . . . . . link_fov 2 | . . . . . . . . . . . . . . . . . 2 . . . . . focus_fire 1 | . . . . . . . . . . . . . . . . . 1 . . . . . scatter_targeting 6 | . . . . . . . . . . . 1 . 1 . 1 1 2 . . . . . mark_system 2 | . . . . . . . . . . . . . . . . 2 . . . . . . disrupt_area 2 | . . . . . . . . . . . . . . 1 . . . . . . . 1 amplify_resonance 7 | . . . . . . . . . . . . . . 1 1 . . . . . . 5 reboot_system 4 | . . . . . . . . . . . . 1 1 . . . 2 . . . . . go_dormant 1 | . . . . . . . . . . . . . 1 . . . . . . . . . overwrite_iff 78 | . . . . . . . . . 2 5 2 5 3 13 10 6 6 1 5 . 4 16 streamctrl_high 2 | . . . . . . . . . . 1 . 1 . . . . . . . . . . formatsys_low 7 | . . . . . . . . . . . . . . . . . 7 . . . . . formatsys_high 49 | . . . . . . . . . 2 3 5 1 . . . 3 8 2 8 2 6 9 Relay Couplers Released 133 | . . . . . 1 . 18 . . 20 . 16 . 21 . 15 . . 23 . 16 3 Machine Destruction 133 | . . . . . 1 . 18 . . 20 . 16 . 21 . 15 . . 23 . 16 3 Attached 53 | . . . . . . . . . 3 5 3 5 . 6 1 5 7 . 6 . 4 8 Robots Rewired 11 | . . . . . . . 2 . . . . . . . . . . . . . 9 . Allies Hacked 11 | . . . . . . . . . . . 2 . . . . . 3 . 1 2 . 3 Hacks Repelled . | . . . . . . . . . . . . . . . . . . . . . . . Allies | -11 -10 -10 -10 -9 -8 -8 -8 -8 -6 -6 -5 -5 -5 -5 -4 -4 -3 -2 -2 -2 -2 -1 -------- Run | Scr Mat Min Exi Min Mat Sto Gar Rec Fac Gar Fac Gar Fac Gar Fac Gar Res Res Gar Res Gar Acc Total Allies 149 | . . 1 . . . . 2 . 5 9 7 7 6 12 10 9 20 3 13 2 19 24 Largest Group 13 | . . 1 1 . . . 2 2 2 3 5 2 3 2 1 3 5 3 4 4 13 13 Highest-Rated Group 805 | . . 31 31 . . . 42 42 110 96 192 98 93 76 56 143 207 156 244 244 805 805 Highest-Rated Ally 222 | . . 31 31 . . . 21 21 81 81 49 49 41 49 56 58 64 58 69 64 69 222 Total Orders 114 | . . . . . . . . . 13 13 7 . . . . 5 44 . 14 2 12 4 STAY 55 | . . . . . . . . . 7 7 4 . . . . 2 17 . 9 1 6 2 FOLLOW 50 | . . . . . . . . . 6 6 3 . . . . 3 18 . 5 1 6 2 GUARD 3 | . . . . . . . . . . . . . . . . . 3 . . . . . AID 3 | . . . . . . . . . . . . . . . . . 3 . . . . . DROP 1 | . . . . . . . . . . . . . . . . . 1 . . . . . PICKUP 2 | . . . . . . . . . . . . . . . . . 2 . . . . . Ally Attacks 728 | . . . . . . . 16 46 37 37 26 20 36 25 30 34 101 3 33 37 51 196 Total Damage 24525 | . . . . . . . 243 538 1602 609 605 629 576 708 962 1547 3067 98 1230 1203 1878 9030 Kills 139 | . . . . . . . 3 18 11 6 6 5 2 2 2 8 20 . 1 4 9 42 Allies Corrupted 8 | . . . . . . . . . 1 . . . . . . . 3 . 1 1 . 2 Allies Melted 5 | . . . . . . . . . . 1 . 1 . 2 1 . . . . . . . Intel | -11 -10 -10 -10 -9 -8 -8 -8 -8 -6 -6 -5 -5 -5 -5 -4 -4 -3 -2 -2 -2 -2 -1 ------- Run | Scr Mat Min Exi Min Mat Sto Gar Rec Fac Gar Fac Gar Fac Gar Fac Gar Res Res Gar Res Gar Acc Robot Analysis Total 2 | . . . . . . . . . . . . . . . . . 1 . . . . 1 Derelict Logs Recovered 1 | . . 1 . . . . . . . . . . . . . . . . . . . . Drone Launches . | . . . . . . . . . . . . . . . . . . . . . . . Drone Recoveries . | . . . . . . . . . . . . . . . . . . . . . . . Exploration | -11 -10 -10 -10 -9 -8 -8 -8 -8 -6 -6 -5 -5 -5 -5 -4 -4 -3 -2 -2 -2 -2 -1 ------------- Run | Scr Mat Min Exi Min Mat Sto Gar Rec Fac Gar Fac Gar Fac Gar Fac Gar Res Res Gar Res Gar Acc Turns Passed 52713 | 31 916 958 1368 2090 3052 1945 3045 422 1704 2779 3055 2543 5099 2119 3534 2270 6044 719 2207 1344 1979 3490 Spaces Moved 19691 | 26 500 533 387 555 929 613 935 106 540 966 1019 872 1684 708 1058 794 2787 359 1197 684 1036 1403 Core . | . . . . . . . . . . . . . . . . . . . . . . . Treads 19627 | . 463 533 387 555 928 613 935 106 540 966 1019 872 1684 708 1058 794 2787 359 1197 684 1036 1403 Legs 64 | 26 37 . . . 1 . . . . . . . . . . . . . . . . . Wheels . | . . . . . . . . . . . . . . . . . . . . . . . Hover . | . . . . . . . . . . . . . . . . . . . . . . . Flight . | . . . . . . . . . . . . . . . . . . . . . . . Fastest Speed 120 | 120 120 160 160 360 255 258 258 358 259 259 260 260 260 260 262 262 158 152 152 152 152 152 Average Speed 225 | 120 157 160 350 360 269 258 298 358 259 260 260 260 260 262 262 262 174 154 155 152 152 165 Slowest Speed 920 | 120 160 160 360 360 920 258 358 358 259 261 261 260 260 265 265 262 279 162 156 156 255 263 Overloaded Moves . | . . . . . . . . . . . . . . . . . . . . . . . Propulsion Burnouts . | . . . . . . . . . . . . . . . . . . . . . . . Robots Hopped . | . . . . . . . . . . . . . . . . . . . . . . . Cave-ins Triggered . | . . . . . . . . . . . . . . . . . . . . . . . Exploration Rate (%) 62 | 4 97 96 73 92 71 87 85 32 18 82 27 88 50 97 34 74 68 14 89 23 91 47 Regions Visited 22 Branch Regions 5 Pre-discovered Areas . | . . . . . . . . . . . . . . . . . . . . . . . Known Exits Taken 15 | 1 1 1 1 1 1 1 . 1 1 . 1 . 1 . 1 . 1 1 . 1 . . Unknown Exits Taken . | . . . . . . . . . . . . . . . . . . . . . . . Scrap Searched 4 | . . 2 . 2 . . . . . . . . . . . . . . . . . . Spaces Dug 288 | . 1 3 . . 1 1 8 . 14 1 7 4 20 . 47 . 66 6 1 16 19 73 Terrain Destroyed 1707 | . 1 3 . . 2 2 15 1 16 13 130 81 91 177 100 3 185 8 280 22 238 339 Melee 54 | . 1 . . . 1 1 . . 14 1 6 4 12 . 1 . 9 4 . . . . Projectile 356 | . . 3 . . 1 1 7 1 2 2 4 . 31 2 56 3 46 4 8 22 34 129 AOE 1297 | . . . . . . . 8 . . 10 120 77 48 175 43 . 130 . 272 . 204 210 Terrain Rammed . | . . . . . . . . . . . . . . . . . . . . . . . Walls Destroyed . | . . . . . . . . . . . . . . . . . . . . . . . Machines Disabled . | . . . . . . . . . . . . . . . . . . . . . . . Actions | -11 -10 -10 -10 -9 -8 -8 -8 -8 -6 -6 -5 -5 -5 -5 -4 -4 -3 -2 -2 -2 -2 -1 --------- Run | Scr Mat Min Exi Min Mat Sto Gar Rec Fac Gar Fac Gar Fac Gar Fac Gar Res Res Gar Res Gar Acc Total 25649 | 25 599 605 404 627 1324 904 1110 128 729 1162 1262 1063 2225 909 1678 931 3705 486 1446 890 1298 2139 Wait 2795 | . 41 48 . 39 225 207 86 13 86 45 72 45 271 66 438 33 423 73 90 118 55 321 Move 19661 | 25 499 532 386 554 928 612 933 105 539 964 1018 870 1683 706 1057 792 2786 358 1195 683 1034 1402 Hop . | . . . . . . . . . . . . . . . . . . . . . . . Pick Up 361 | . 18 2 6 8 21 10 17 . 5 29 14 14 26 17 11 12 67 4 17 11 30 22 Fast Attach 161 | . 5 2 2 2 11 7 . . 2 . 8 4 15 2 11 2 34 9 9 4 5 27 Attach 114 | . 1 . 2 1 2 . 1 . 4 6 4 11 4 11 13 4 20 2 3 2 9 14 Detach 52 | . 1 . 4 1 . . . . . . 5 3 3 1 3 . 13 . 3 2 6 7 Swap 375 | . 8 1 1 5 28 11 6 . 15 21 23 20 50 17 17 8 71 3 11 8 14 37 Drop 433 | . 10 4 3 6 36 20 7 . 8 30 21 17 40 16 23 9 85 11 22 5 21 39 Fire 1430 | . 15 16 . 10 71 36 41 10 31 44 73 54 108 65 100 45 182 21 91 54 97 266 Melee 126 | . 1 . . . 2 1 . . 36 11 21 11 25 2 1 . 10 5 . . . . Ram . | . . . . . . . . . . . . . . . . . . . . . . . Kick . | . . . . . . . . . . . . . . . . . . . . . . . Crush 5 | . . . . 1 . . . . . . 1 . . . . . 1 . . 2 . . Escape Stasis 79 | . . . . . . . 16 . 2 10 . 14 . 6 4 26 . . . . 1 . Rewire 52 | . . . . . . . 3 . 1 2 2 . . . . . 8 . 5 1 26 4 Trap 5 | . . . . . . . . . . . . . . . . . 5 . . . . . Miscellaneous . | . . . . . . . . . . . . . . . . . . . . . . . Route ------- -11/Scrapyard -10/Materials (discovered 5 exits: *Mat x3 / *Min x2) -10/Mines (discovered 3 exits: *Mat x2 / *Exi) -10/Exiles (discovered 2 exits: *Min x2) -9/Mines -8/Materials (discovered 3 exits: *Fac x2 / *Sto) -8/Storage (discovered 2 exits: *Fac / Gar) -8/Garrison (discovered 3 exits: *Rec x3) -8/Recycling -6/Factory -6/Garrison (discovered 3 exits: *Fac x3) -5/Factory (discovered 3 exits: *Fac / *Upp / Gar) -5/Garrison (discovered 3 exits: *Fac x3) -5/Factory (discovered 5 exits: *Fac x2 / *Upp / *Ext / Gar) -5/Garrison (discovered 3 exits: *Fac x3) -4/Factory (discovered 3 exits: *Res / *Arm / Gar) -4/Garrison (discovered 3 exits: *Res x3) -3/Research (discovered 5 exits: *Res x3 / *Qua x2) -2/Research (discovered 2 exits: *Acc / Gar) -2/Garrison (discovered 3 exits: *Res x3) -2/Research -2/Garrison (discovered 3 exits: *Acc x3) -1/Access To Epsilon Eridani History --------- Turn | Location | Event 1 | -11/Scrapyard | Identified exit to Materials 1 | -11/Scrapyard | Discovered exit to Materials (range 3) 32 | -11/Scrapyard | Entered Materials 32 | -10/Materials | Evolved 1 slot: Utility x1 191 | -10/Materials | Identified exit to Mines 191 | -10/Materials | Discovered exit to Mines (range 11) 279 | -10/Materials | Repaired Lgt. Cannon 293 | -10/Materials | Repaired Heat Sink 300 | -10/Materials | Build established: Hacker-Mutant 564 | -10/Materials | Identified exit to Materials 564 | -10/Materials | Discovered exit to Materials (range 4) 627 | -10/Materials | Discovered exit to Materials (range 16) 756 | -10/Materials | Discovered exit to Materials (range 8) 881 | -10/Materials | Discovered exit to Mines (range 16) 948 | -10/Materials | Entered Mines 1038 | -10/Mines | Discovered exit to Materials (range 8) 1524 | -10/Mines | Deemed a non-threat by the Exiles lab entrance 1525 | -10/Mines | Identified exit to Exiles 1525 | -10/Mines | Discovered exit to Exiles (range 5) 1628 | -10/Mines | Found a damaged Exp. Sensor Array with a note attached 1631 | -10/Mines | Found Prototype Device 1711 | -10/Mines | Discovered exit to Materials (range 9) 1743 | -10/Mines | Received a Mining Laser from a helpful Derelict 1906 | -10/Mines | Entered Exiles 1906 | -10/Exiles | Accompanied by 1 ally 1907 | -10/Exiles | Identified exit to Mines 2028 | -10/Exiles | Met 8R-AWN 2086 | -10/Exiles | Met EX-HEX 2282 | -10/Exiles | Met EX-DEC 2459 | -10/Exiles | Met EX-BIN 2649 | -10/Exiles | Aligned with FarCom system 2653 | -10/Exiles | Given EX-Vault access code 2797 | -10/Exiles | Opened EX-Vault 2830 | -10/Exiles | Found Prototype Device 2830 | -10/Exiles | Identified Trap Reconfigurator 2847 | -10/Exiles | Found Prototype Slashing Weapon 2847 | -10/Exiles | Identified Longsword +1 2937 | -10/Exiles | Warned to stay clear of 0b10 Research branches 3274 | -10/Exiles | Left Exiles lab with Trap Reconfigurator 3274 | -10/Exiles | Entered Mines 3289 | -9/Mines | Identified Exp. Sensor Array 4500 | -9/Mines | Identified exit to Materials 4500 | -9/Mines | Discovered exit to Materials (range 7) 4653 | -9/Mines | Met a Derelict who couldn't figure out how to use a Trap Extractor 4921 | -9/Mines | YI-UF0 nonchalantly dropped a Grenade Launcher on the ground 5364 | -9/Mines | Entered Materials 5364 | -8/Materials | Evolved 4 slots: Propulsion x2, Utility x1, Weapon x1 5670 | -8/Materials | Build established: Hacker-Skirmisher 6877 | -8/Materials | Identified exit to Factory 6877 | -8/Materials | Discovered exit to Factory (range 3) 7217 | -8/Materials | Repaired Lgt. Treads 7256 | -8/Materials | Repaired Adv. Treads 7296 | -8/Materials | Repaired Arm. Treads 7512 | -8/Materials | Identified exit to Storage 7512 | -8/Materials | Discovered exit to Storage (range 15) 8194 | -8/Materials | Discovered exit to Factory (range 3) 8416 | -8/Materials | Entered Storage 9227 | -8/Storage | Found Prototype Launcher 9853 | -8/Storage | Discovered exit to Factory (range 5) 9917 | -8/Storage | Repaired Arm. Treads 9950 | -8/Storage | Repaired Cooling System 9990 | -8/Storage | Repaired Adv. Treads 10359 | -8/Storage | Identified exit to Garrison 10361 | -8/Storage | Entered Garrison 10374 | -8/Garrison | Installed Relay Interface Framework 10484 | -8/Garrison | Triggered checkpoint 10565 | -8/Garrison | Garrison Relay disabled 10838 | -8/Garrison | Triggered checkpoint 11013 | -8/Garrison | Triggered checkpoint 11025 | -8/Garrison | Triggered checkpoint 11235 | -8/Garrison | Identified exit to Recycling 11235 | -8/Garrison | Discovered exit to Recycling (range 10) 11322 | -8/Garrison | Build established: Hacker-Mutant 11352 | -8/Garrison | Triggered checkpoint 11359 | -8/Garrison | Garrison Relay disabled 11411 | -8/Garrison | Triggered checkpoint 11512 | -8/Garrison | Discovered exit to Recycling (range 10) 11562 | -8/Garrison | Triggered checkpoint 11609 | -8/Garrison | Garrison Relay disabled 11813 | -8/Garrison | Discovered exit to Recycling (range 11) 11886 | -8/Garrison | Triggered checkpoint 12031 | -8/Garrison | Garrison Relay disabled 12364 | -8/Garrison | Build established: Bothacker-Skirmisher 13406 | -8/Garrison | Entered Recycling 13406 | -8/Recycling | Accompanied by 2 allies 13412 | -8/Recycling | Spotter reported a threat 13425 | -8/Recycling | Spotter reported a threat 13457 | -8/Recycling | Spotter reported a threat 13489 | -8/Recycling | Spotter reported a threat 13497 | -8/Recycling | Spotter reported a threat 13523 | -8/Recycling | Identified exit to Factory 13524 | -8/Recycling | Spotter reported a threat 13564 | -8/Recycling | Spotter reported a threat 13575 | -8/Recycling | Spotter reported a threat 13605 | -8/Recycling | Spotter reported a threat 13615 | -8/Recycling | Spotter reported a threat 13626 | -8/Recycling | Spotter reported a threat 13671 | -8/Recycling | Spotter reported a threat 13671 | -8/Recycling | Spotter reported a threat 13671 | -8/Recycling | Spotter reported a threat 13671 | -8/Recycling | Spotter reported a threat 13720 | -8/Recycling | Spotter reported a threat 13720 | -8/Recycling | Spotter reported a threat 13720 | -8/Recycling | Spotter reported a threat 13720 | -8/Recycling | Spotter reported a threat 13771 | -8/Recycling | Spotter reported a threat 13771 | -8/Recycling | Spotter reported a threat 13771 | -8/Recycling | Spotter reported a threat 13784 | -8/Recycling | Spotter reported a threat 13822 | -8/Recycling | Spotter reported a threat 13822 | -8/Recycling | Spotter reported a threat 13822 | -8/Recycling | Spotter reported a threat 13828 | -8/Recycling | Entered Factory 13828 | -6/Factory | Accompanied by 2 allies 13828 | -6/Factory | Evolved 4 slots: Propulsion x2, Utility x2 13982 | -6/Factory | Repaired Lgt. Treads 14198 | -6/Factory | Fabricated Med. Treads (x2) 14547 | -6/Factory | Spotted B-75 Beast 14556 | -6/Factory | Assimilated Beast 5a with formatsys_high 14797 | -6/Factory | Fabricated Med. Treads (x2) 14837 | -6/Factory | Build established: Bothacker-Mutant 15529 | -6/Factory | Identified exit to Garrison 15532 | -6/Factory | Entered Garrison 15532 | -6/Garrison | Accompanied by 1 ally 15715 | -6/Garrison | Triggered checkpoint 15834 | -6/Garrison | Garrison Relay disabled 15984 | -6/Garrison | Identified Gui. Missile Launcher 15992 | -6/Garrison | Triggered checkpoint 16045 | -6/Garrison | Triggered checkpoint 16150 | -6/Garrison | Triggered checkpoint 16240 | -6/Garrison | Triggered checkpoint 16300 | -6/Garrison | Garrison Relay disabled 16380 | -6/Garrison | Identified exit to Factory 16380 | -6/Garrison | Discovered exit to Factory (range 10) 16589 | -6/Garrison | Spotted B-75 Beast 16589 | -6/Garrison | Spotted B-75 Beast 16875 | -6/Garrison | Discovered exit to Factory (range 10) 17020 | -6/Garrison | Triggered checkpoint 17085 | -6/Garrison | Garrison Relay disabled 17255 | -6/Garrison | Triggered checkpoint 17317 | -6/Garrison | Garrison Relay disabled 17559 | -6/Garrison | Discovered exit to Factory (range 10) 17596 | -6/Garrison | Expanded RIF knowledge: Coupler Efficiency 17638 | -6/Garrison | Triggered checkpoint 17672 | -6/Garrison | Garrison Relay disabled 18311 | -6/Garrison | Entered Factory 18311 | -5/Factory | Accompanied by 3 allies 18311 | -5/Factory | Evolved 2 slots: Utility x2 18312 | -5/Factory | Identified exit to Upper Caves 18312 | -5/Factory | Discovered exit to Upper Caves (range 8) 19012 | -5/Factory | Repaired Med. Treads 19200 | -5/Factory | Garrison activated, responded to threat 20737 | -5/Factory | P-70 Sage assimilated allied Soldier 6b 21215 | -5/Factory | Identified exit to Factory 21215 | -5/Factory | Discovered exit to Factory (range 6) 21350 | -5/Factory | Identified exit to Garrison 21366 | -5/Factory | Entered Garrison 21366 | -5/Garrison | Accompanied by 1 ally 21446 | -5/Garrison | Triggered checkpoint 21562 | -5/Garrison | Garrison Relay disabled 21715 | -5/Garrison | Triggered checkpoint 21753 | -5/Garrison | Triggered checkpoint 21775 | -5/Garrison | Spotted B-75 Beast 21998 | -5/Garrison | Destroyed B-75 Beast 22173 | -5/Garrison | Triggered checkpoint 22385 | -5/Garrison | Identified exit to Factory 22385 | -5/Garrison | Discovered exit to Factory (range 8) 22472 | -5/Garrison | Triggered checkpoint 22549 | -5/Garrison | Garrison Relay disabled 23047 | -5/Garrison | Discovered exit to Factory (range 10) 23443 | -5/Garrison | Triggered checkpoint 23648 | -5/Garrison | Discovered exit to Factory (range 10) 23687 | -5/Garrison | Expanded RIF knowledge: Watcher Feeds 23746 | -5/Garrison | Triggered checkpoint 23769 | -5/Garrison | Build established: Bothacker-Skirmisher 23793 | -5/Garrison | Garrison Relay disabled 23909 | -5/Garrison | Entered Factory 24132 | -5/Factory | Discovered exit to Factory (range 8) 24449 | -5/Factory | Build established: Bothacker-Mutant 26751 | -5/Factory | Found Prototype Processor 26766 | -5/Factory | Found Prototype Processor 27241 | -5/Factory | Identified exit to Extension 27241 | -5/Factory | Discovered exit to Extension (range 5) 27753 | -5/Factory | Identified Exp. Targeting Computer (x2) 27966 | -5/Factory | System corruption reached 10% 28436 | -5/Factory | Discovered exit to Factory (range 15) 28454 | -5/Factory | Repaired Imp. Medium Armor Plating 28463 | -5/Factory | Build established: Bothacker-Skirmisher 28850 | -5/Factory | Allied Derelicts emerged from ambush trap array 28860 | -5/Factory | Build established: Bothacker-Mutant 28952 | -5/Factory | Discovered exit to Upper Caves (range 38) 28973 | -5/Factory | Identified exit to Garrison 29008 | -5/Factory | Entered Garrison 29021 | -5/Garrison | Expanded RIF knowledge: Coupler Efficiency 29085 | -5/Garrison | Triggered checkpoint 29145 | -5/Garrison | Garrison Relay disabled 29405 | -5/Garrison | Triggered checkpoint 29423 | -5/Garrison | Triggered checkpoint 29486 | -5/Garrison | Spotted B-75 Beast 29492 | -5/Garrison | Destroyed B-75 Beast 29610 | -5/Garrison | Triggered checkpoint 29699 | -5/Garrison | Triggered checkpoint 29792 | -5/Garrison | Spotted B-75 Beast 29795 | -5/Garrison | Spotted B-75 Beast 29870 | -5/Garrison | Triggered checkpoint 29974 | -5/Garrison | Build established: Botlord-Mutant 30050 | -5/Garrison | Garrison Relay disabled 30128 | -5/Garrison | Triggered checkpoint 30193 | -5/Garrison | Discovered exit to Factory (range 8) 30500 | -5/Garrison | Phase Generator disabled 30527 | -5/Garrison | Discovered exit to Factory (range 9) 30644 | -5/Garrison | Triggered checkpoint 30718 | -5/Garrison | Garrison Relay disabled 30970 | -5/Garrison | Triggered checkpoint 31014 | -5/Garrison | Garrison Relay disabled 31082 | -5/Garrison | Discovered exit to Factory (range 15) 31127 | -5/Garrison | Entered Factory 31127 | -4/Factory | Evolved 2 slots: Utility x1, Weapon x1 31809 | -4/Factory | Found Unknown Device 31809 | -4/Factory | Identified Quantum Capacitor 32239 | -4/Factory | Garrison activated, responded to threat 32405 | -4/Factory | Build established: Botlord-Tank 33810 | -4/Factory | Fabricated Humpback (x1) 33833 | -4/Factory | Identified exit to Armory 33833 | -4/Factory | Discovered exit to Armory (range 32) 34156 | -4/Factory | Identified exit to Research 34156 | -4/Factory | Discovered exit to Research (range 6) 34511 | -4/Factory | Build established: Botlord-Mutant 34659 | -4/Factory | Identified exit to Garrison 34661 | -4/Factory | Entered Garrison 34820 | -4/Garrison | Garrison Relay disabled 35013 | -4/Garrison | Triggered checkpoint 35060 | -4/Garrison | Spotted B-86 Titan 35188 | -4/Garrison | Triggered checkpoint 35327 | -4/Garrison | Discovered exit to Research (range 12) 35372 | -4/Garrison | Expanded RIF knowledge: Signal Jamming 35432 | -4/Garrison | Triggered checkpoint 35505 | -4/Garrison | Garrison Relay disabled 35784 | -4/Garrison | Triggered checkpoint 35791 | -4/Garrison | Garrison Relay disabled 35890 | -4/Garrison | Discovered exit to Research (range 10) 36062 | -4/Garrison | Triggered checkpoint 36089 | -4/Garrison | Build established: Botlord-Skirmisher 36145 | -4/Garrison | Discovered exit to Research (range 15) 36228 | -4/Garrison | Triggered checkpoint 36261 | -4/Garrison | Garrison Relay disabled 36340 | -4/Garrison | Triggered checkpoint 36931 | -4/Garrison | Entered Research 36931 | -3/Research | Accompanied by 3 allies 36931 | -3/Research | Evolved 2 slots: Propulsion x2 37002 | -3/Research | Identified exit to Research 37002 | -3/Research | Discovered exit to Research (range 16) 37463 | -3/Research | Fabricated Lgt. Quantum Reactor (x2) 37676 | -3/Research | Identified exit to Quarantine 37676 | -3/Research | Discovered exit to Quarantine (range 16) 38135 | -3/Research | Destroyed B-86 Titan 38377 | -3/Research | Found Tactical Quantum Warhead 38556 | -3/Research | P-80 Master assimilated allied Excavator 8a 38569 | -3/Research | Build established: Botlord-Mutant 39272 | -3/Research | P-80 Master assimilated allied Excavator 8c 39477 | -3/Research | Build established: Botlord-Skirmisher 40240 | -3/Research | Discovered exit to Quarantine (range 9) 40519 | -3/Research | Found Tactical Quantum Warhead 41129 | -3/Research | Discovered exit to Research (range 23) 41238 | -3/Research | Found Unknown Launcher 41238 | -3/Research | Identified Fusion Bomb Launcher 41368 | -3/Research | Build established: Botlord-Mutant 41967 | -3/Research | System corruption reached 10% 42021 | -3/Research | Build established: Botlord-Skirmisher 42447 | -3/Research | Build established: Botlord-Mutant 42844 | -3/Research | Discovered exit to Research (range 14) 42975 | -3/Research | Entered another Research area 42975 | -2/Research | Evolved 2 slots: Utility x2 43130 | -2/Research | Build established: Bothacker-Mutant 43464 | -2/Research | Identified exit to Access 43464 | -2/Research | Discovered exit to Access (range 12) 43692 | -2/Research | Identified exit to Garrison 43694 | -2/Research | Entered Garrison 43694 | -2/Garrison | Accompanied by 1 ally 43766 | -2/Garrison | Phase Generator disabled 43846 | -2/Garrison | Triggered checkpoint 43899 | -2/Garrison | Garrison Relay disabled 43986 | -2/Garrison | Triggered checkpoint 43986 | -2/Garrison | Spotted B-90 Cyclops 44302 | -2/Garrison | Triggered checkpoint 44342 | -2/Garrison | Destroyed B-90 Cyclops 44502 | -2/Garrison | Identified exit to Research 44502 | -2/Garrison | Discovered exit to Research (range 12) 44605 | -2/Garrison | Build established: Bothacker-Gunner 44629 | -2/Garrison | Garrison Relay disabled 44659 | -2/Garrison | Triggered checkpoint 44855 | -2/Garrison | Spotted B-90 Cyclops 45014 | -2/Garrison | Build established: Botlord-Mutant 45032 | -2/Garrison | Triggered checkpoint 45070 | -2/Garrison | Garrison Relay disabled 45175 | -2/Garrison | Discovered exit to Research (range 15) 45190 | -2/Garrison | Spotted B-90 Cyclops 45235 | -2/Garrison | Garrison Relay disabled 45391 | -2/Garrison | Triggered checkpoint 45464 | -2/Garrison | Discovered exit to Research (range 5) 45479 | -2/Garrison | Expanded RIF knowledge: Zone Cloak 45578 | -2/Garrison | Triggered checkpoint 45617 | -2/Garrison | Garrison Relay disabled 45828 | -2/Garrison | Triggered checkpoint 45901 | -2/Garrison | Entered Research 45901 | -2/Research | Accompanied by 4 allies 46005 | -2/Research | Fabricated Humpback (x1) 46104 | -2/Research | Local fabrication network quarantined 46548 | -2/Research | Spotted Striker 46555 | -2/Research | Spotted Striker 46846 | -2/Research | Spotted Executioner 46937 | -2/Research | Destroyed Executioner 46964 | -2/Research | Found Exp. Targeting Computer 47173 | -2/Research | Identified exit to Garrison 47245 | -2/Research | Entered Garrison 47245 | -2/Garrison | Accompanied by 1 ally 47322 | -2/Garrison | Triggered checkpoint 47342 | -2/Garrison | Garrison Relay disabled 47639 | -2/Garrison | Triggered checkpoint 47654 | -2/Garrison | Spotted B-90 Cyclops 47750 | -2/Garrison | Destroyed B-90 Cyclops 47876 | -2/Garrison | Triggered checkpoint 47881 | -2/Garrison | Triggered checkpoint 47971 | -2/Garrison | Discovered exit to Access (range 14) 48001 | -2/Garrison | Expanded RIF knowledge: Zone Cloak 48050 | -2/Garrison | Triggered checkpoint 48072 | -2/Garrison | Garrison Relay disabled 48094 | -2/Garrison | Triggered checkpoint 48322 | -2/Garrison | Triggered checkpoint 48334 | -2/Garrison | Garrison Relay disabled 48654 | -2/Garrison | Discovered exit to Access (range 10) 48847 | -2/Garrison | Triggered checkpoint 48860 | -2/Garrison | Build established: Botlord-Skirmisher 49040 | -2/Garrison | Discovered exit to Access (range 11) 49068 | -2/Garrison | Triggered checkpoint 49081 | -2/Garrison | Garrison Relay disabled 49224 | -2/Garrison | Entered Access 49224 | -1/Access | Accompanied by 13 allies 49224 | -1/Access | Evolved 2 slots: Power x1, Utility x1 49374 | -1/Access | Energy Cycler disabled 49474 | -1/Access | First assault squad dispatched 49768 | -1/Access | Destroyed 12 combat bots 49980 | -1/Access | Found Com. Tesla Bomb Launcher 49982 | -1/Access | Destroyed 7 combat bots 49982 | -1/Access | Found Com. Tesla Bomb Launcher 50179 | -1/Access | Destroyed 8 combat bots 50185 | -1/Access | Found Unknown Device 50185 | -1/Access | Identified Antimissile System 50195 | -1/Access | Found Antimissile System 50669 | -1/Access | Lost 3 parts (1u2w) 50840 | -1/Access | Build established: Botlord-Mutant 50904 | -1/Access | System corruption reached 10% 52067 | -1/Access | Garrison activated, responded to threat 52161 | -1/Access | Destroyed 9 combat bots 52271 | -1/Access | Spotted B-99 Colossus 52274 | -1/Access | Assimilated Colossus 10a with formatsys_high 52487 | -1/Access | Garrison activated, responded to threat 52673 | -1/Access | Identified exit to Surface 52673 | -1/Access | Discovered exit to Surface (range 6) 52714 | *** | Escaped! Last Messages --------------- >>ignore_repairs Repair routines blocked. 52605_ >> Watcher Feeds: Established visual feed link with W-44 Eye. 52606_ Jacked U-05 Engineer... >>ignore_repairs Repair routines blocked. 52618_ System corrupted: Heat flow error (+243). 52636_ System corrupted: Heat flow error (+118). 52649_ Slug penetrates W-44 Eye. 52649_ Slug penetrates Wall. 52650_ W-44 Eye knocked back. 52650_ Slug penetrates W-44 Eye. 52650_ Slug penetrates Wall. 52650_ W-44 Eye destroyed. 52658_ &M|#INDRS,RWKK2:BCU 52668_ Connecting with Terminal... 52673_ The Access Shell folds into the floor. 52673_ EXIT=FOUND: SURFACE 52688_ System corrupted: Matter fused (-9). 52703_ 81KN,ENOXKF1DXKJW<% H Map ----- +----------------------------------------------------+ | #???????????????????????????????????????????? | | #????????????##?????????????????????????????? | | ###+##???????????# #?????????????????????????????? | | ??# #?#############??????????????????????????????? | | ??# ####![% ####????????????????????????????? | | ??# +!!% # #????????????????????????????? | | ??######% % " ####????????????????????????????? | | ???????# """ #???????????????????????????????? | | ???????# """ #???????????????????????????????? | | ??###### " #???????????????????????????????? | | ??# + ! #???????????????????????????????? | | ??# #### % #???????????????????????????????? | | ???????#####+#####???????????????????????????????? | | ?????????# ! #??????????????????????????????????? | | ?????????# #??????BB????BB????????????????????? | | ?????????# #??????BB????BB????????????????????? | | ?????????# #??????????????????????????????????? | | ?????????## ##??????????????????????????????????? | | ??????????# #???????????????????????????????????? | | ??????????# #???????????????????????????????????? | | ??????????# #?????#""""""""""#??????????????????? | | ??????????# #?????# #??????????????????? | | ??????????# #?????# #??????????????????? | | ??????????# #?????# #??????????????????? | | ??????????# ####### "" #??????????????????? | | ??????????# # Y"@ #??????????????????? | | ??????????# ####### #??????????????????? | | ??????????# #?????# BBY #??????????????????? | | ??????????# #?????# BB #??????????????????? | | ??????????# #????## ##?????????????????? | | ??????????# #????# #?????????????????? | | ??????????# #????##"" ##?????????????????? | | ??????????# #?????#"" #??????????????????? | | ####+###### #?????#"" #??????????????????? | | = #?????#T #??????????????????? | | #?????#"" #??????????????????? | | #?????#"" #??????????????????? | | "" #######"" #####+########?????? | | """ ! #??" | | "T =%% +??" | | """ * ######################/###??????????" | | ^ "" #############???????????????????????? | | ### # ????????????????????? | | ??# + ????????????????????? | | ??# # ????????????????????? | | ### # """"""??????????????????????? | | # #? ] """?????????????????????????? | | # #? """?????????????????????????? | | # #?? """?????????????????????????? | | # #?? ""??????????????????????????? | +----------------------------------------------------+ Best States ------------- Heat Dissipation 109 Coolant Potential 100 Energy Generation 49 Energy Capacity 1040 Matter Stores 550 Matter Capacity 550 Sight Range 16 Robot Scan Range 20 Terrain Scan Density 10 Base Temperature (-) 200 Armor Coverage 1200 Resistance: KI 35 Resistance: TH 35 Resistance: EX 35 Resistance: EM 60 Resistance: I 35 Resistance: S 35 Resistance: P 35 Utility Shielding 66 Point Defense Rating 240 Evasion (%) 55 Targeting Accuracy 20 Target Analysis 6 Recoil Reduction 8 Offensive Hacking 30 Defensive Hacking 14 Relay Coupler Types 283 Relay Coupler Value 7 Item Schematics ----------------- Sensor Array | -10/Materials | Hacked Humpback | -8/Materials | Scanalyzed Imp. Transmission Jammer | -8/Storage | Hacked Med. Treads | -8/Storage | Hacked Hvy. Treads | -5/Factory | Scanalyzed Smartbomb Launcher | -5/Factory | Scanalyzed Hyp. Mass Driver | -3/Research | Scanalyzed Robot Schematics ------------------ None Fabricated ------------ Med. Treads | x2 | -6/Factory Med. Treads | x2 | -6/Factory Humpback | x1 | -4/Factory Lgt. Quantum Reactor | x2 | -3/Research | Preloaded Humpback | x1 | -2/Research Alien Tech Used ----------------- None Achievements -------------- Packrat \\IAMDERELICT Challenges ------------ None Game ------ Seed WardroneWardronePenetrator Manual? 0 Play Time 12:08:05 Cumulative 230.1 hours Start 2021.05.21 @ 22:17:33 End 2021.05.30 @ 21:41:10 Sessions 17 Manual Loads 0 Difficulty Explorer Special Mode None Game No. 92 Rogue 68 Adventurer 0 Explorer 24 Win Type 0 Total 7 Types 5/1/1/0/0/0/0/0/0 Lore% 65 Gallery% 69 Achievement% 58 Wizard Run 0 Options --------- ASCII 1 Keyboard 1 Movement Numpad Keybinds 0 Fullscreen 1 Font 18/SmallcapsGlow Map View 76x50 Tactical HUD 1 Map Filters NONE Filters NONE Steam 1 RUN: 8d60446b-338b-471c-8cb1-276b82bbdcd6